fUSD/lending_fUSD_20250530
["ID","MTS","AMOUNT","RATE_DAILY","PERIOD"]
[363089505,1748573446083,-420.0,0.00022189,2]
[363089507,1748573446093,-420.0,0.00022189,2]
[363089509,1748573446102,-151.207155,0.00022189,7]
[363089512,1748573446113,-151.0,0.00022189,7]
[363089514,1748573446123,-151.0,0.00022189,7]
[363089516,1748573446133,-151.63003,0.00022189,7]
[363089518,1748573446144,-151.0,0.00022189,7]
[363089520,1748573446153,-151.0,0.00022189,7]
[363089522,1748573446163,-226.275616,0.00022189,7]
[363089524,1748573446173,-226.275616,0.00022189,7]
[363089526,1748573446181,-151.0,0.00022189,7]
[363089528,1748573446191,-990.59,0.00022189,2]
[363089529,1748573446200,-152.383247,0.00022189,7]
[363089531,1748573446209,-153.917284,0.00022189,7]
[363089533,1748573446219,-151.0,0.00022189,7]
[363089535,1748573446228,-156.806273,0.00022189,7]
[363089537,1748573446237,-151.0,0.00022189,7]
[363089539,1748573446246,-151.0,0.00022189,7]
[363089542,1748573446256,-152.20341,0.00022189,7]
[363089544,1748573446267,-30074.61860474,0.00022189,2]
[363089546,1748573446280,-7474.96139526,0.00022189,2]
[363089548,1748573446290,-151.0,0.00022189,7]
[363089550,1748573446299,-2137.2,0.00022189,2]
[363089552,1748573446309,-151.0,0.00022189,7]
[363089554,1748573446319,-1865.18,0.00022189,2]
[363089556,1748573446329,-1540.01,0.00022189,2]
[363089558,1748573446339,-8658.59,0.00022189,2]
[363089560,1748573446350,-152.713827,0.00022189,7]
[363089562,1748573446360,-869.31,0.00022189,2]
[363089564,1748573446370,-1930.33,0.00022189,2]
[363089566,1748573446379,-826.93,0.00022189,2]
[363089568,1748573446389,-24450.15,0.00022189,2]
[363089570,1748573446399,-1541.08,0.00022189,2]
[363089572,1748573446409,-11815.05800741,0.00022189,2]
[363089575,1748573446421,-12706.44199259,0.00022189,2]
[363089577,1748573446431,-706.45,0.00022189,2]
[363089579,1748573446440,-1483.88,0.00022189,2]
[363089581,1748573446450,-3512.52,0.00022189,2]
[363089583,1748573446461,-1992.79,0.00022189,2]
[363089585,1748573446470,-1948.5,0.00022189,2]
[363089587,1748573446480,-151.0,0.00022189,7]
[363089589,1748573446490,-374.358639,0.00022189,7]
[363089591,1748573446500,-374.358639,0.00022189,7]
[363089593,1748573446514,-151.0,0.00022189,7]
[363089595,1748573446524,-151.0,0.00022189,7]
[363089597,1748573446533,-151.0,0.0002219,7]
[363089599,1748573446544,-151.0,0.0002219,7]
[363089601,1748573446554,-151.0,0.0002219,7]
[363089603,1748573446567,-151.0,0.0002219,7]
[363089605,1748573446580,-151.0,0.0002219,7]
[363089607,1748573446591,-151.0,0.0002219,7]
[363089609,1748573446602,-260.327757,0.0002219,7]
[363089611,1748573446612,-260.327757,0.0002219,7]
[363089613,1748573446622,-260.327757,0.0002219,7]
[363089615,1748573446632,-260.327757,0.0002219,7]
[363089618,1748573446642,-990.59,0.0002219,2]
[363089620,1748573446653,-990.59,0.0002219,2]
[363089622,1748573446663,-990.59,0.0002219,2]
[363089624,1748573446672,-990.59,0.0002219,2]
[363089626,1748573446682,-990.59,0.0002219,2]
[363089628,1748573446691,-990.59,0.0002219,2]
[363089630,1748573446701,-990.59,0.0002219,2]
[363089632,1748573446710,-990.59,0.0002219,2]
[363089634,1748573446720,-990.59,0.0002219,2]
[363089636,1748573446730,-990.59,0.0002219,2]
[363089638,1748573446739,-990.59,0.0002219,2]
[363089640,1748573446748,-990.59,0.0002219,2]
[363089642,1748573446758,-990.59,0.0002219,2]
[363089644,1748573446768,-990.59,0.0002219,2]
[363089646,1748573446777,-990.65736583,0.0002219,2]
[363089648,1748573446787,-214.73168106,0.0002219,2]
[363089650,1748573446797,-500.0,0.0002219,2]
[363089652,1748573446806,-203.49862837,0.0002219,2]
[363089654,1748573446816,-161.31882454,0.0002219,2]
[363089656,1748573446825,-254.52296221,0.0002219,2]
[363089658,1748573446834,-500.0,0.0002219,2]
[363089660,1748573446844,-371.68223327,0.0002219,2]
[363089662,1748573446853,-500.0,0.0002219,2]
[363089664,1748573446863,-29.76625254,0.0002219,2]
[363089667,1748573446878,-470.23374746,0.0002219,2]
[363089669,1748573446887,-109.9283062,0.0002219,2]
[363089671,1748573446898,-390.0716938,0.0002219,2]
[363089673,1748573446910,-209.37963386,0.0002219,2]
[363089676,1748573446921,-290.62036614,0.0002219,2]
[363089678,1748573446931,-151.0,0.00022191,7]
[363089680,1748573446940,-151.0,0.00022191,7]
[363089682,1748573446950,-151.0,0.00022191,7]
[363089684,1748573446960,-151.0,0.00022191,7]
[363089686,1748573446970,-151.0,0.00022191,7]
[363089688,1748573446980,-151.362671,0.00022191,7]
[363089690,1748573446990,-153.237277,0.00022191,7]
[363089692,1748573447000,-153.95629477,0.00022191,2]
[363089694,1748573447010,-151.0,0.00022191,7]
[363089696,1748573447019,-151.0,0.00022191,7]
[363089698,1748573447029,-75.65847161,0.00022191,7]
[363089701,1748573447043,-75.34152839,0.00022191,7]
[363089703,1748573447052,-151.0,0.00022191,7]
[363089705,1748573447063,-151.0,0.00022191,7]
[363089707,1748573447075,-159.729713,0.00022191,7]
[363089709,1748573447085,-151.0,0.00022191,7]
[363089711,1748573447095,-151.0,0.00022191,7]
[363089713,1748573447104,-151.0,0.00022191,7]
[363089715,1748573447115,-151.0,0.00022191,7]
[363089717,1748573447124,-151.0,0.00022191,7]
[363089719,1748573447134,-151.0,0.00022191,7]
[363089721,1748573447144,-151.0,0.00022191,7]
[363089723,1748573447154,-151.0,0.00022191,7]
[363089725,1748573447164,-151.0,0.00022191,7]
[363089727,1748573447174,-151.0,0.00022191,7]
[363089729,1748573447184,-151.0,0.00022191,7]
[363089731,1748573447193,-151.0,0.00022191,7]
[363089733,1748573447202,-151.0,0.00022191,7]
[363089735,1748573447212,-151.0,0.00022191,7]
[363089738,1748573447221,-151.0,0.00022191,7]
[363089739,1748573447231,-252.525869,0.00022191,7]
[363089740,1748573447241,-260.327757,0.00022191,7]
[363089741,1748573447251,-260.327757,0.00022191,7]
[363089742,1748573447260,-260.327757,0.00022191,7]
[363089743,1748573447270,-260.327757,0.00022191,7]
[363089744,1748573447280,-260.327757,0.00022191,7]
[363089745,1748573447291,-260.327757,0.00022191,7]
[363089746,1748573447302,-420.0,0.00022191,2]
[363089747,1748573447311,-151.0,0.00022191,7]
[363089749,1748573447321,-151.0,0.00022191,7]
[363089751,1748573447332,-153.857308,0.00022191,7]
[363089753,1748573447342,-615.55,0.00022191,2]
[363089755,1748573447351,-420.0,0.00022191,2]
[363089757,1748573447361,-420.0,0.00022191,2]
[363089759,1748573447370,-420.0,0.00022191,2]
[363089761,1748573447380,-420.0,0.00022191,2]
[363089763,1748573447389,-512.59,0.00022191,2]
[363089765,1748573447399,-420.0,0.00022191,2]
[363089767,1748573447409,-305.22116241,0.00022191,2]
[363089769,1748573447419,-424.56,0.00022191,2]
[363089771,1748573447428,-577.95,0.00022191,2]
[363089773,1748573447438,-179.847237,0.00022191,7]
[363089775,1748573447447,-627.16,0.00022191,2]
[363089777,1748573447457,-420.0,0.00022191,2]
[363089779,1748573447467,-447.27,0.00022191,2]
[363089782,1748573447477,-420.0,0.00022191,2]
[363089784,1748573447487,-420.0,0.00022191,2]
[363089786,1748573447497,-420.0,0.00022191,2]
[363089787,1748573447507,-151.0,0.00022191,7]
[363089790,1748573447517,-1000.0,0.00022191,2]
[363089792,1748573447526,-420.0,0.00022191,2]
[363089794,1748573447537,-744.51,0.00022191,2]
[363089796,1748573447547,-420.0,0.00022191,2]
[363089798,1748573447557,-157.132062,0.00022191,7]
[363089800,1748573447568,-157.132062,0.00022191,7]
[363089802,1748573447578,-157.132062,0.00022191,7]
[363089804,1748573447588,-420.0,0.00022191,2]
[363089806,1748573447598,-420.0,0.00022191,2]
[363089808,1748573447608,-154.54021,0.00022191,7]
[363089810,1748573447619,-532.65,0.00022191,2]
[363089812,1748573447628,-501.1,0.00022191,2]
[363089814,1748573447638,-420.0,0.00022191,2]
[363089816,1748573447648,-420.0,0.00022191,2]
[363089818,1748573447658,-420.0,0.00022191,2]
[363089820,1748573447668,-151.0,0.00022191,7]
[363089822,1748573447678,-152.25952,0.00022191,7]
[363089824,1748573447688,-151.0,0.00022191,7]
[363089826,1748573447698,-151.0,0.00022191,7]
[363089828,1748573447708,-151.0,0.00022191,7]
[363089831,1748573447719,-244.760823,0.00022191,7]
[363089833,1748573447730,-420.0,0.00022191,2]
[363089835,1748573447740,-420.0,0.00022191,2]
[363089837,1748573447750,-420.0,0.00022191,2]
[363089839,1748573447761,-420.0,0.00022191,2]
[363089841,1748573447771,-459.9,0.00022191,2]
[363089843,1748573447780,-420.0,0.00022191,2]
[363089845,1748573447790,-508.708608,0.00022191,7]
[363089847,1748573447799,-420.0,0.00022191,2]
[363089849,1748573447809,-508.708608,0.00022191,7]
[363089851,1748573447819,-508.708608,0.00022191,7]
[363089853,1748573447830,-787.55,0.00022191,2]
[363089855,1748573447840,-508.708608,0.00022191,7]
[363089857,1748573447851,-508.708608,0.00022191,7]
[363089859,1748573447861,-508.708608,0.00022191,7]
[363089861,1748573447871,-151.0,0.00022191,7]
[363089863,1748573447882,-420.0,0.00022191,2]
[363089865,1748573447891,-420.0,0.00022191,2]
[363089867,1748573447902,-420.0,0.00022191,2]
[363089869,1748573447912,-420.0,0.00022191,2]
[363089872,1748573447921,-151.881101,0.00022191,7]
[363089874,1748573447932,-178.986574,0.00022191,7]
[363089876,1748573447942,-420.0,0.00022191,2]
[363089878,1748573447951,-530.44,0.00022191,2]
[363089879,1748573447961,-420.0,0.00022191,2]
[363089882,1748573447972,-151.0,0.00022191,7]
[363089884,1748573447982,-151.0,0.00022191,7]
[363089886,1748573447992,-151.0,0.00022191,7]
[363089888,1748573448001,-761.99,0.00022191,2]
[363089890,1748573448011,-420.0,0.00022191,2]
[363089892,1748573448020,-424.45,0.00022191,2]
[363089894,1748573448030,-420.0,0.00022191,2]
[363089896,1748573448041,-523.54,0.00022191,2]
[363089898,1748573448051,-398.92400776,0.00022191,2]
[363089900,1748573448062,-599.85,0.00022191,2]
[363089902,1748573448076,-639.78,0.00022191,2]
[363089904,1748573448086,-538.51,0.00022191,2]
[363089906,1748573448096,-420.0,0.00022191,2]
[363089908,1748573448107,-551.35,0.00022191,2]
[363089910,1748573448117,-514.08,0.00022191,2]
[363089912,1748573448126,-420.0,0.00022191,2]
[363089914,1748573448138,-420.0,0.00022191,2]
[363089917,1748573448152,-155.404563,0.00022191,7]
[363089919,1748573448162,-420.0,0.00022191,2]
[363089920,1748573448171,-151.0,0.00022191,7]
[363089922,1748573448181,-151.0,0.00022191,7]
[363089925,1748573448191,-151.0,0.00022191,7]
[363089927,1748573448201,-182.45448978,0.00022191,2]
[363089928,1748573448211,-420.0,0.00022191,2]
[363089931,1748573448221,-420.0,0.00022191,2]
[363089932,1748573448231,-325.58732147,0.00022191,2]
[363089935,1748573448241,-420.0,0.00022191,2]
[363089937,1748573448251,-420.0,0.00022191,2]
[363089939,1748573448267,-420.0,0.00022191,2]
[363089941,1748573448278,-552.84,0.00022191,2]
[363089943,1748573448289,-653.62,0.00022191,2]
[363089945,1748573448299,-420.0,0.00022191,2]
[363089947,1748573448310,-550.39,0.00022191,2]
[363089949,1748573448320,-420.0,0.00022191,2]
[363089951,1748573448330,-420.0,0.00022191,2]
[363089953,1748573448340,-377.71738718,0.00022191,2]
[363089955,1748573448351,-151.0,0.00022191,7]
[363089957,1748573448360,-420.0,0.00022191,2]
[363089959,1748573448370,-151.0,0.00022191,7]
[363089961,1748573448381,-154.183624,0.00022191,7]
[363089963,1748573448391,-668.7,0.00022191,2]
[363089965,1748573448401,-836.48,0.00022191,2]
[363089967,1748573448412,-430.80487852,0.00022191,2]
[363089969,1748573448423,-154.273316,0.00022191,7]
[363089971,1748573448434,-563.15,0.00022191,2]
[363089974,1748573448444,-420.0,0.00022191,2]
[363089976,1748573448454,-555.25,0.00022191,2]
[363089978,1748573448464,-420.0,0.00022191,2]
[363089980,1748573448474,-420.0,0.00022191,2]
[363089982,1748573448484,-151.0,0.00022191,7]
[363089984,1748573448495,-609.01,0.00022191,2]
[363089986,1748573448505,-420.0,0.00022191,2]
[363089988,1748573448515,-420.0,0.00022191,2]
[363089990,1748573448525,-151.0,0.00022191,7]
[363089992,1748573448535,-151.0,0.00022191,7]
[363089995,1748573448549,-151.0,0.00022191,7]
[363089997,1748573448559,-153.906557,0.00022191,7]
[363089999,1748573448569,-893.05,0.00022191,2]
[363090001,1748573448579,-420.0,0.00022191,2]
[363090003,1748573448589,-729.73,0.00022191,2]
[363090005,1748573448599,-420.0,0.00022191,2]
[363090007,1748573448609,-420.0,0.00022191,2]
[363090009,1748573448618,-485.46,0.00022191,2]
[363090011,1748573448631,-164.262661,0.00022191,7]
[363090013,1748573448640,-164.262661,0.00022191,7]
[363090015,1748573448650,-900.59,0.00022191,2]
[363090017,1748573448660,-164.262661,0.00022191,7]
[363090019,1748573448670,-164.262661,0.00022191,7]
[363090021,1748573448680,-164.262661,0.00022191,7]
[363090023,1748573448691,-725.67,0.00022191,2]
[363090025,1748573448700,-164.262661,0.00022191,7]
[363090027,1748573448710,-452.59,0.00022191,2]
[363090029,1748573448720,-420.0,0.00022191,2]
[363090031,1748573448729,-427.11922568,0.00022191,2]
[363090033,1748573448739,-432.62,0.00022191,2]
[363090036,1748573448750,-420.0,0.00022191,2]
[363090038,1748573448760,-420.0,0.00022191,2]
[363090040,1748573448770,-769.13,0.00022191,2]
[363090042,1748573448780,-420.0,0.00022191,2]
[363090044,1748573448790,-801.68,0.00022191,2]
[363090046,1748573448800,-1191.18,0.00022191,2]
[363090048,1748573448809,-420.0,0.00022191,2]
[363090050,1748573448820,-420.0,0.00022191,2]
[363090052,1748573448829,-492.64,0.00022191,2]
[363090054,1748573448842,-532.49,0.00022191,2]
[363090056,1748573448851,-447.59,0.00022191,2]
[363090058,1748573448861,-432.0593217,0.00022191,2]
[363090060,1748573448872,-420.0,0.00022191,2]
[363090062,1748573448881,-851.37,0.00022191,2]
[363090064,1748573448891,-1448.3,0.00022191,2]
[363090066,1748573448901,-760.4,0.00022191,2]
[363090068,1748573448911,-420.0,0.00022191,2]
[363090070,1748573448920,-420.0,0.00022191,2]
[363090072,1748573448930,-1135.91,0.00022191,2]
[363090074,1748573448939,-1394.52,0.00022191,2]
[363090076,1748573448949,-439.78,0.00022191,2]
[363090078,1748573448959,-420.0,0.00022191,2]
[363090080,1748573448969,-1607.59,0.00022191,2]
[363090082,1748573448980,-420.0,0.00022191,2]
[363090085,1748573448991,-151.0,0.00022191,7]
[363090086,1748573449001,-226.275616,0.00022191,7]
[363090089,1748573449012,-151.0,0.00022191,7]
[363090091,1748573449022,-226.275616,0.00022191,7]
[363090108,1748573449233,-226.275616,0.00022191,7]
[363090109,1748573449242,-472.4,0.00022191,2]
[363090110,1748573449252,-151.0,0.00022191,7]
[363090111,1748573449261,-420.0,0.00022191,2]
[363090112,1748573449270,-420.0,0.00022191,2]
[363090114,1748573449279,-1253.53,0.00022191,2]
[363090116,1748573449290,-226.275616,0.00022191,7]
[363090118,1748573449299,-226.275616,0.00022191,7]
[363090120,1748573449308,-151.0,0.00022191,7]
[363090122,1748573449317,-226.275616,0.00022191,7]
[363090124,1748573449327,-151.0,0.00022191,7]
[363090126,1748573449336,-197.21376847,0.00022191,7]
[363090127,1748573449345,-420.0,0.00022191,2]
[363090129,1748573449354,-935.25,0.00022191,2]
[363090131,1748573449362,-1083.38,0.00022191,2]
[363090133,1748573449371,-636.24,0.00022191,2]
[363090135,1748573449380,-2123.92,0.00022191,2]
[363090137,1748573449389,-420.0,0.00022191,2]
[363090139,1748573449398,-880.9,0.00022191,2]
[363090141,1748573449407,-420.0,0.00022191,2]
[363090143,1748573449418,-771.65,0.00022191,2]
[363090145,1748573449427,-473.38,0.00022191,2]
[363090147,1748573449437,-420.0,0.00022191,2]
[363090149,1748573449447,-1349.9,0.00022191,2]
[363090151,1748573449456,-420.0,0.00022191,2]
[363090153,1748573449466,-153.069979,0.00022191,7]
[363090156,1748573449475,-420.0,0.00022191,2]
[363090158,1748573449485,-525.12,0.00022191,2]
[363090160,1748573449494,-627.6,0.00022191,2]
[363090162,1748573449503,-676.57,0.00022191,2]
[363090164,1748573449513,-605.33,0.00022191,2]
[363090166,1748573449522,-420.0,0.00022191,2]
[363090168,1748573449532,-420.0,0.00022191,2]
[363090170,1748573449543,-759.13,0.00022191,2]
[363090172,1748573449552,-138.53399047,0.00022191,2]
[363090175,1748573449578,-441.13600953,0.00022191,2]
[363090178,1748573449587,-420.0,0.00022191,2]
[363090179,1748573449597,-295.06399047,0.00022191,2]
[363090193,1748573449717,-0.01368485,0.00022191,2]
[363090195,1748573449729,-124.92232468,0.00022191,2]
[363090198,1748573449739,-342.19967388,0.00022191,2]
[363090288,1748573450837,-426.17275191,0.00021917,2]
[363090289,1748573450847,-15.84013701,0.00021917,2]
[363090290,1748573450858,-182.38986299,0.00021917,2]
[363090292,1748573450867,-420.0,0.00021917,2]
[363090294,1748573450877,-420.0,0.00021917,2]
[363090296,1748573450887,-300.48032612,0.00022191,2]
[363090298,1748573450896,-420.0,0.00022191,2]
[363090300,1748573450906,-22.18319261,0.00022191,2]
[363090302,1748573450917,-437.81680739,0.00022191,2]
[363090304,1748573450926,-983.56800296,0.00022191,2]
[363090306,1748573450938,-350.59199704,0.00022191,2]
[363090308,1748573450948,-515.06,0.00022191,2]
[363090310,1748573450957,-441.38011182,0.00022191,2]
[363090313,1748573450969,-492.97988818,0.00022191,2]
[363090315,1748573450979,-593.8,0.00022191,2]
[363090317,1748573450988,-420.0,0.00022191,2]
[363090319,1748573450998,-420.0,0.00022191,2]
[363090321,1748573451007,-1028.8,0.00022191,2]
[363090322,1748573451016,-420.0,0.00022191,2]
[363090324,1748573451026,-515.51,0.00022191,2]
[363090326,1748573451035,-420.0,0.00022191,2]
[363090328,1748573451046,-1421.89,0.00022191,2]
[363090330,1748573451055,-786.55,0.00022191,2]
[363090332,1748573451065,-445.3,0.00022191,2]
[363090334,1748573451078,-420.0,0.00022191,2]
[363090336,1748573451087,-420.0,0.00022191,2]
[363090338,1748573451096,-645.08,0.00022191,2]
[363090340,1748573451106,-420.0,0.00022191,2]
[363090342,1748573451115,-420.0,0.00022191,2]
[363090344,1748573451125,-1007.26,0.00022191,2]
[363090346,1748573451134,-450.17,0.00022191,2]
[363090349,1748573451144,-1550.54,0.00022191,2]
[363090351,1748573451154,-907.86,0.00022191,2]
[363090353,1748573451163,-518.39,0.00022191,2]
[363090355,1748573451172,-514.87,0.00022191,2]
[363090357,1748573451181,-820.87,0.00022191,2]
[363090359,1748573451193,-1134.55,0.00022191,2]
[363090361,1748573451202,-576.17,0.00022191,2]
[363090363,1748573451211,-561.49,0.00022191,2]
[363090365,1748573451219,-477.1,0.00022191,2]
[363090367,1748573451229,-1271.96,0.00022191,2]
[363090369,1748573451239,-523.32,0.00022191,2]
[363090371,1748573451248,-1658.76,0.00022191,2]
[363090373,1748573451257,-628.69,0.00022191,2]
[363090374,1748573451266,-1219.77,0.00022191,2]
[363090376,1748573451275,-1703.8,0.00022191,2]
[363090378,1748573451285,-819.72,0.00022191,2]
[363090380,1748573451298,-420.0,0.00022191,2]
[363090382,1748573451308,-1116.54,0.00022191,2]
[363090384,1748573451317,-420.0,0.00022191,2]
[363090386,1748573451328,-501.35,0.00022191,2]
[363090389,1748573451339,-1295.3,0.00022191,2]
[363090391,1748573451349,-575.91,0.00022191,2]
[363090393,1748573451358,-454.85,0.00022191,2]
[363090395,1748573451367,-615.21,0.00022191,2]
[363090397,1748573451377,-721.49,0.00022191,2]
[363090399,1748573451387,-420.0,0.00022191,2]
[363090401,1748573451397,-467.93,0.00022191,2]
[363090403,1748573451407,-966.76,0.00022191,2]
[363090405,1748573451416,-151.0,0.00022191,7]
[363090407,1748573451425,-420.0,0.00022191,2]
[363090409,1748573451435,-151.0,0.00022191,7]
[363090411,1748573451444,-151.0,0.00022191,7]
[363090413,1748573451453,-151.0,0.00022191,7]
[363090415,1748573451463,-420.0,0.00022191,2]
[363090417,1748573451472,-1886.79,0.00022191,2]
[363090419,1748573451482,-1526.98,0.00022191,2]
[363090421,1748573451492,-420.0,0.00022191,2]
[363090423,1748573451501,-420.0,0.00022191,2]
[363090425,1748573451510,-1735.04,0.00022191,2]
[363090427,1748573451520,-660.66,0.00022191,2]
[363090429,1748573451529,-420.0,0.00022191,2]
[363090431,1748573451540,-1328.79,0.00022191,2]
[363090433,1748573451550,-434.56,0.00022191,2]
[363090435,1748573451559,-412.03727996,0.00022191,2]
[363090437,1748573451568,-830.27,0.00022191,2]
[363090439,1748573451578,-1222.92,0.00022191,2]
[363090441,1748573451588,-900.63,0.00022191,2]
[363090443,1748573451598,-493.54,0.00022191,2]
[363090444,1748573451607,-609.34,0.00022191,2]
[363090446,1748573451618,-1282.02,0.00022191,2]
[363090448,1748573451627,-1744.01,0.00022191,2]
[363090450,1748573451636,-420.0,0.00022191,2]
[363090452,1748573451646,-575.04,0.00022191,2]
[363090454,1748573451655,-810.23,0.00022191,2]
[363090456,1748573451665,-420.0,0.00022191,2]
[363090457,1748573451675,-420.0,0.00022191,2]
[363090459,1748573451684,-1118.89,0.00022191,2]
[363090461,1748573451693,-734.48,0.00022191,2]
[363090463,1748573451702,-550.77,0.00022191,2]
[363090464,1748573451712,-844.29,0.00022191,2]
[363090466,1748573451722,-1530.98,0.00022191,2]
[363090468,1748573451731,-420.0,0.00022191,2]
[363090470,1748573451741,-1434.3,0.00022191,2]
[363090472,1748573451750,-420.0,0.00022191,2]
[363090474,1748573451760,-420.0,0.00022191,2]
[363090476,1748573451770,-1047.57,0.00022191,2]
[363090478,1748573451780,-531.54,0.00022191,2]
[363090480,1748573451790,-717.82,0.00022191,2]
[363090482,1748573451800,-750.79,0.00022191,2]
[363090484,1748573451809,-1267.84,0.00022191,2]
[363090486,1748573451819,-420.0,0.00022191,2]
[363090488,1748573451828,-1161.94,0.00022191,2]
[363090490,1748573451837,-420.0,0.00022191,2]
[363090492,1748573451846,-420.0,0.00022191,2]
[363090494,1748573451856,-420.0,0.00022191,2]
[363090496,1748573451866,-2687.05,0.00022191,2]
[363090498,1748573451875,-1669.61,0.00022191,2]
[363090500,1748573451885,-741.53,0.00022191,2]
[363090502,1748573451894,-440.43,0.00022191,2]
[363090504,1748573451903,-420.0,0.00022191,2]
[363090505,1748573451912,-420.0,0.00022191,2]
[363090507,1748573451922,-420.0,0.00022191,2]
[363090509,1748573451931,-420.0,0.00022191,2]
[363090511,1748573451940,-2180.54,0.00022191,2]
[363090512,1748573451950,-839.99,0.00022191,2]
[363090513,1748573451959,-469.62,0.00022191,2]
[363090514,1748573451969,-420.0,0.00022191,2]
[363090515,1748573451978,-472.04,0.00022191,2]
[363090516,1748573451987,-420.0,0.00022191,2]
[363090517,1748573451997,-1170.0,0.00022191,2]
[363090518,1748573452006,-420.0,0.00022191,2]
[363090519,1748573452016,-420.0,0.00022191,2]
[363090520,1748573452025,-600.79,0.00022191,2]
[363090521,1748573452034,-428.62,0.00022191,2]
[363090522,1748573452044,-522.7,0.00022191,2]
[363090523,1748573452053,-420.0,0.00022191,2]
[363090524,1748573452062,-613.11,0.00022191,2]
[363090525,1748573452074,-236.93293961,0.00022191,2]
[363090526,1748573452083,-1390.03,0.00022191,2]
[363090527,1748573452092,-420.0,0.00022191,2]
[363090528,1748573452101,-1042.78,0.00022191,2]
[363090529,1748573452112,-632.42,0.00022191,2]
[363090531,1748573452121,-151.0,0.00022191,7]
[363090533,1748573452130,-467.89,0.00022191,2]
[363090534,1748573452139,-151.0,0.00022191,7]
[363090536,1748573452150,-1174.28,0.00022191,2]
[363090538,1748573452159,-420.0,0.00022191,2]
[363090540,1748573452168,-420.0,0.00022191,2]
[363090542,1748573452178,-1014.58,0.00022191,2]
[363090544,1748573452187,-420.0,0.00022191,2]
[363090546,1748573452196,-1492.01,0.00022191,2]
[363090548,1748573452205,-566.42,0.00022191,2]
[363090550,1748573452214,-1013.98,0.00022191,2]
[363090552,1748573452223,-596.45,0.00022191,2]
[363090554,1748573452232,-420.0,0.00022191,2]
[363090556,1748573452241,-420.0,0.00022191,2]
[363090558,1748573452250,-420.0,0.00022191,2]
[363090560,1748573452260,-364.32266137,0.00022191,2]
[363090562,1748573452269,-420.0,0.00022191,2]
[363090564,1748573452278,-428.67,0.00022191,2]
[363090566,1748573452287,-457.41666003,0.00022191,2]
[363090568,1748573452297,-420.0,0.00022191,2]
[363090570,1748573452306,-151.0,0.00022191,7]
[363090572,1748573452315,-576.25,0.00022191,2]
[363090574,1748573452325,-151.0,0.00022191,7]
[363090576,1748573452334,-422.36,0.00022191,2]
[363090578,1748573452344,-420.0,0.00022191,2]
[363090580,1748573452353,-420.0,0.00022191,2]
[363090583,1748573452364,-528.19,0.00022191,2]
[363090585,1748573452374,-420.0,0.00022191,2]
[363090587,1748573452383,-420.0,0.00022191,2]
[363090589,1748573452392,-151.0,0.00022191,7]
[363090590,1748573452400,-151.0,0.00022191,7]
[363090592,1748573452409,-467.17,0.00022191,2]
[363090593,1748573452418,-420.0,0.00022191,2]
[363090594,1748573452427,-420.0,0.00022191,2]
[363090595,1748573452436,-610.67,0.00022191,2]